Department Family,Entity,Date,Expenses Type,Expense Area,Supplier,Transaction Number,  Total  ,
Department of Health,The Christie NHS Foundation Trust,14/05/2020,Project Management Services,Capital,ACTUA SOLUTIONS LTD,0000643297,"27,196.80",
Department of Health,The Christie NHS Foundation Trust,14/05/2020,Wider Team Engagement,Capital,AIRE LOGIC LIMITED,0000643731,"63,622.50",
Department of Health,The Christie NHS Foundation Trust,14/05/2020,Drugs,Drugs,ALCURA UK LIMITED,0000643976,"48,464.69",
Department of Health,The Christie NHS Foundation Trust,21/05/2020,PET-CT Recharge,Christie Medical Physics,ALLIANCE MEDICAL LTD,0000644019,"62,040.00",
Department of Health,The Christie NHS Foundation Trust,21/05/2020,Drugs,Christie Medical Physics,ALLIANCE MEDICAL LTD,0000643733,"113,360.00",
Department of Health,The Christie NHS Foundation Trust,21/05/2020,Drugs,Christie Medical Physics,ALLIANCE MEDICAL RADIOPHARMACY LIMITED,0000643993,"31,372.62",
Department of Health,The Christie NHS Foundation Trust,28/05/2020,Drugs,Drugs,BAXTER HEALTHCARE LTD,0000643865,"86,434.92",
Department of Health,The Christie NHS Foundation Trust,28/05/2020,Drugs,Drugs,BAXTER HEALTHCARE LTD,0000643866,"64,729.26",
Department of Health,The Christie NHS Foundation Trust,28/05/2020,Drugs,Drugs,BAXTER HEALTHCARE LTD,0000643867,"224,633.77",
Department of Health,The Christie NHS Foundation Trust,28/05/2020,Drugs,Drugs,BAXTER HEALTHCARE LTD,0000644457,"89,112.19",
Department of Health,The Christie NHS Foundation Trust,14/05/2020,Drugs,Drugs,BAXTER HEALTHCARE LTD,0000642984,"111,982.86",
Department of Health,The Christie NHS Foundation Trust,14/05/2020,Drugs,Drugs,BAXTER HEALTHCARE LTD,0000642987,"49,994.23",
Department of Health,The Christie NHS Foundation Trust,14/05/2020,Drugs,Drugs,BAXTER HEALTHCARE LTD,0000642988,"96,726.43",
Department of Health,The Christie NHS Foundation Trust,14/05/2020,Drugs,Drugs,BAXTER HEALTHCARE LTD,0000643085,"51,168.56",
Department of Health,The Christie NHS Foundation Trust,14/05/2020,Drugs,Drugs,BAXTER HEALTHCARE LTD,0000643399,"79,393.61",
Department of Health,The Christie NHS Foundation Trust,14/05/2020,Drugs,Drugs,BAXTER HEALTHCARE LTD,0000643407,"57,155.51",
Department of Health,The Christie NHS Foundation Trust,14/05/2020,Drugs,Drugs,BAXTER HEALTHCARE LTD,0000643471,"94,008.08",
Department of Health,The Christie NHS Foundation Trust,14/05/2020,Drugs,Drugs,BAXTER HEALTHCARE LTD,0000643651,"66,173.86",
Department of Health,The Christie NHS Foundation Trust,14/05/2020,Drugs,Drugs,BAXTER HEALTHCARE LTD,0000642986,"85,525.04",
Department of Health,The Christie NHS Foundation Trust,28/05/2020,Drugs,Drugs,BAXTER HEALTHCARE LTD,0000644005,"88,999.78",
Department of Health,The Christie NHS Foundation Trust,28/05/2020,Drugs,Drugs,BAXTER HEALTHCARE LTD,0000644279,"140,226.31",
Department of Health,The Christie NHS Foundation Trust,28/05/2020,Drugs,Drugs,BAXTER HEALTHCARE LTD,0000644280,"55,010.81",
Department of Health,The Christie NHS Foundation Trust,28/05/2020,Drugs,Drugs,BAXTER HEALTHCARE LTD,0000644289,"142,739.21",
Department of Health,The Christie NHS Foundation Trust,28/05/2020,Drugs,Drugs,BAXTER HEALTHCARE LTD,0000644302,"125,372.86",
Department of Health,The Christie NHS Foundation Trust,14/05/2020,Drugs,Drugs,BAXTER HEALTHCARE LTD,0000642989,"127,326.32",
Department of Health,The Christie NHS Foundation Trust,01/05/2020,Drugs,Drugs,BAXTER HEALTHCARE LTD,0000643720,"351,380.40",
Department of Health,The Christie NHS Foundation Trust,14/05/2020,Drugs,Drugs,BAXTER HEALTHCARE LTD,0000643535,"42,401.82",
Department of Health,The Christie NHS Foundation Trust,28/05/2020,Medical Equipment,COVID-19,BIO-PACKAGING LTD,0000643760,"26,790.00",
Department of Health,The Christie NHS Foundation Trust,06/05/2020,Medical Equipment Service Contract,Clin Support & Spec Surgery,CARESTREAM HEALTH UK LTD,0000643341,"35,916.00",
Department of Health,The Christie NHS Foundation Trust,06/05/2020,Infrastructure ,Capital,CITY BUILD MANCHESTER LTD,0000643199,"42,011.86",
Department of Health,The Christie NHS Foundation Trust,14/05/2020,Management Services - March 2020,Christie Pathology Partner,CPP FACILITIES LLP,0000642933,"213,575.62",
Department of Health,The Christie NHS Foundation Trust,21/05/2020,Management Services - June 2020,Christie Pathology Partner,CPP FACILITIES LLP,0000644128,"180,459.89",
Department of Health,The Christie NHS Foundation Trust,28/05/2020,Electricity Bill - April 2020,Network Services,EDF ENERGY,0000644464,"37,491.68",
Department of Health,The Christie NHS Foundation Trust,21/05/2020,Electricity Bill - March 2020,Network Services,EDF ENERGY,0000642260,"26,892.26",
Department of Health,The Christie NHS Foundation Trust,21/05/2020,Electricity Bill - March 2020,Network Services,EDF ENERGY,0000642262,"51,486.59",
Department of Health,The Christie NHS Foundation Trust,06/05/2020,Technology Services, Digital Services,EGRESS GROUP LTD,0000643176,"40,000.00",
Department of Health,The Christie NHS Foundation Trust,28/05/2020,Project Management Services,Capital,GALLIFORD TRY BUILDING LIMITED,0000644095,"103,950.94",
Department of Health,The Christie NHS Foundation Trust,06/05/2020,Medical Equipment,Network Services,GILEAD SCIENCES LTD,0000642792,"224,360.80",
Department of Health,The Christie NHS Foundation Trust,21/05/2020,Drugs,Drugs,HEALTHCARE AT HOME LTD,0000644461,"25,299.00",
Department of Health,The Christie NHS Foundation Trust,14/05/2020,COVID-19 Enabling Jobs & Associated Works,Capital,HIGH LEVEL MAINTENANCE SOLUTIONS LTD,0000643675,"33,770.00",
Department of Health,The Christie NHS Foundation Trust,28/05/2020,Medical Software,Capital,ICU UK MEDICAL LIMITED,0000644578,"75,240.00",
Department of Health,The Christie NHS Foundation Trust,21/05/2020,Technology Services, Digital Services,INSIGHT DIRECT (UK) LTD,0000643073,"52,582.63",
Department of Health,The Christie NHS Foundation Trust,06/05/2020,Provision of NCC Compliant Solution,Finance & Business Developm,IQVIA TECHNOLOGY SERVICES LTD,0000643127,"30,264.00",
Department of Health,The Christie NHS Foundation Trust,14/05/2020,Drugs,Drugs,LLOYDSPHARMACY CLINICAL HOMECARE,0000643933,"38,891.00",
Department of Health,The Christie NHS Foundation Trust,14/05/2020,Project Management Services,Capital,MACE LTD,0000642551,"27,790.17",
Department of Health,The Christie NHS Foundation Trust,06/05/2020,Support Services,COVID-19,MAX 20 PROJECT SOLUTIONS LTD,0000643309,"40,000.00",
Department of Health,The Christie NHS Foundation Trust,21/05/2020,Drugs,Drugs,MID CHESHIRE HOSPITALS NHS FT,0000641672,"143,048.52",
Department of Health,The Christie NHS Foundation Trust,28/05/2020,IT Services, Digital Services,NG BAILEY IT SERVICES LIMITED,0000644329,"30,638.92",
Department of Health,The Christie NHS Foundation Trust,15/05/2020,Blood Products,Network Services,NHS BLOOD AND TRANSPLANT,0000644352,"188,268.30",
Department of Health,The Christie NHS Foundation Trust,15/05/2020,NHSLA Payment, Quality & Standards,NHS LITIGATION AUTHORITY,0000644356,"152,871.30",
Department of Health,The Christie NHS Foundation Trust,18/05/2020,Payroll Services,Human Resources,NHS SHARED BUSINESS SERVICES LTD,0000644561,"40,910.05",
Department of Health,The Christie NHS Foundation Trust,06/05/2020,Medical Systems,Network Services,NHS SUPPLY CHAIN,0000643193,"71,269.26",
Department of Health,The Christie NHS Foundation Trust,21/05/2020,All Wards & Departments,The Christie NHS FT Balance,NHS SUPPLY CHAIN,0000644186,"35,261.94",
Department of Health,The Christie NHS Foundation Trust,21/05/2020,All Wards & Departments,The Christie NHS FT Balance,NHS SUPPLY CHAIN,0000643337,"92,864.80",
Department of Health,The Christie NHS Foundation Trust,21/05/2020,All Wards & Departments,The Christie NHS FT Balance,NHS SUPPLY CHAIN,0000643338,"43,485.91",
Department of Health,The Christie NHS Foundation Trust,21/05/2020,All Wards & Departments,The Christie NHS FT Balance,NHS SUPPLY CHAIN,0000643339,"33,095.14",
Department of Health,The Christie NHS Foundation Trust,21/05/2020,All Wards & Departments,The Christie NHS FT Balance,NHS SUPPLY CHAIN,0000643340,"112,677.63",
Department of Health,The Christie NHS Foundation Trust,21/05/2020,All Wards & Departments,The Christie NHS FT Balance,NHS SUPPLY CHAIN,0000643787,"53,957.77",
Department of Health,The Christie NHS Foundation Trust,28/05/2020,Drugs,Drugs,NOVARTIS PHARMACEUTICALS UK LTD,0000644312,"257,184.00",
Department of Health,The Christie NHS Foundation Trust,14/05/2020,IT Equipment,Capital,OLYMPUS KEYMED,0000643373,"104,615.28",
Department of Health,The Christie NHS Foundation Trust,21/05/2020,IT Equipment,Capital,OLYMPUS KEYMED,0000643950,"65,768.68",
Department of Health,The Christie NHS Foundation Trust,21/05/2020,MacMillan Working Project Charges Q1,Manchester Cancer,SALFORD ROYAL HOSP NHS FT,0000640609,"103,485.65",
Department of Health,The Christie NHS Foundation Trust,28/05/2020,IT Equipment, Digital Services,SCC PLC,0000642214,"49,942.01",
Department of Health,The Christie NHS Foundation Trust,21/05/2020,IT Services,Capital,SOFTCAT PLC,0000644161,"109,694.86",
Department of Health,The Christie NHS Foundation Trust,14/05/2020,IT Services, Digital Services,SOFTCAT PLC,0000643748,"149,465.62",
Department of Health,The Christie NHS Foundation Trust,21/05/2020,IT Support System - June 2020, Digital Services,SYSTEM C HEALTHCARE,0000644160,"28,018.18",
Department of Health,The Christie NHS Foundation Trust,14/05/2020,Software Equipment, Digital Services,TET LTD,0000643159,"25,807.68",
Department of Health,The Christie NHS Foundation Trust,14/05/2020,Pathology Testing Services - March 2020,Christie Pathology Partner,THE CHRISTIE PATHOLOGY PARTNERSHIP LLP,0000642932,"449,408.99",
Department of Health,The Christie NHS Foundation Trust,21/05/2020,Pathology Testing Services - June 2020,Christie Pathology Partner,THE CHRISTIE PATHOLOGY PARTNERSHIP LLP,0000644120,"379,726.40",
Department of Health,The Christie NHS Foundation Trust,06/05/2020,Pathology Testing Services,Clin Support & Spec Surgery,THE CHRISTIE PATHOLOGY PARTNERSHIP LLP,0000635292,"32,752.23",
Department of Health,The Christie NHS Foundation Trust,14/05/2020,Research Services,Research & Innovation,UNIVERSITY OF LEEDS,0000643283,"53,343.20",
Department of Health,The Christie NHS Foundation Trust,14/05/2020,SLA Provision of Sonography,Research & Innovation,UNIVERSITY OF MANCHESTER,0000643989,"49,500.00",
Department of Health,The Christie NHS Foundation Trust,21/05/2020,Service Contract,Network Services,VARIAN MEDICAL SYSTEMS UK LTD,0000644332,"246,228.00",
Department of Health,The Christie NHS Foundation Trust,06/05/2020,Service Contract,Network Services,VARIAN MEDICAL SYSTEMS UK LTD,0000642904,"254,503.76",
Department of Health,The Christie NHS Foundation Trust,06/05/2020,ProBeam Therapy Centre,Capital,VARIAN MEDICAL SYSTEMS UK LTD,0000642974,"3,387,046.40",
Department of Health,The Christie NHS Foundation Trust,28/05/2020,Operations & Maintenance Contract,Estates & Facilities,VEOLIA ENERGY &UTILITY SERVICES UK PLC,0000642075,"199,042.80",
